[Event "Titled Tuesday Blitz September 27 Early 2022"]
[White "Aakanksha Hagawane"]
[Black "Eljanov, Pavel"]
[WhiteFideId "25014510"]
[BlackFideId "14102951"]
[WhiteElo "1971"]
[BlackElo "2601"]
[Result "0-1"]
[Round "01"]
[TimeControl "180+1"]
[Date "2022.09.27"]
[WhiteClock "0:00:15"]
[BlackClock "0:00:46"]

1. e4 {[%clk 0:03:00]}  c6 {[%clk 0:02:56]} 2. Nc3 {[%clk 0:02:58]}  d5 {[%clk 0:02:57]} 3. Nf3 {[%clk 0:02:58]}  dxe4 {[%clk 0:02:57]} 4. Nxe4 {[%clk 0:02:58]}  Nf6 {[%clk 0:02:58]} 5. Qe2 {[%clk 0:02:54]}  Bg4 {[%clk 0:02:42]} 6. h3 {[%clk 0:02:27]}  Bh5 {[%clk 0:02:40]} 7. Nxf6+ {[%clk 0:02:14]}  gxf6 {[%clk 0:02:39]} 8. g4 {[%clk 0:02:14]}  Bg6 {[%clk 0:02:38]} 9. d4 {[%clk 0:02:14]}  Na6 {[%clk 0:02:34]} 10. a3 {[%clk 0:02:10]}  e6 {[%clk 0:02:00]} 11. Bf4 {[%clk 0:01:54]}  Qa5+ {[%clk 0:01:56]} 12. Bd2 {[%clk 0:01:25]}  Bb4 {[%clk 0:01:53]} 13. Rc1 {[%clk 0:01:07]}  Bxd2+ {[%clk 0:01:50]} 14. Qxd2 {[%clk 0:01:07]}  Qd5 {[%clk 0:01:48]} 15. Bg2 {[%clk 0:01:06]}  h5 {[%clk 0:01:39]} 16. Nh4 {[%clk 0:01:03]}  Qd6 {[%clk 0:01:26]} 17. Nxg6 {[%clk 0:01:02]}  fxg6 {[%clk 0:01:27]} 18. Qd3 {[%clk 0:00:58]}  O-O-O {[%clk 0:01:23]} 19. Rd1 {[%clk 0:00:57]}  g5 {[%clk 0:01:20]} 20. Qe3 {[%clk 0:00:49]}  Nc7 {[%clk 0:01:18]} 21. Rd3 {[%clk 0:00:46]}  Nd5 {[%clk 0:01:18]} 22. Bxd5 {[%clk 0:00:45]}  Qxd5 {[%clk 0:01:18]} 23. Rf1 {[%clk 0:00:45]}  hxg4 {[%clk 0:01:11]} 24. hxg4 {[%clk 0:00:45]}  Rh4 {[%clk 0:01:11]} 25. f3 {[%clk 0:00:43]}  Rh2 {[%clk 0:01:06]} 26. Kd1 {[%clk 0:00:43]}  Qa2 {[%clk 0:01:03]} 27. Qc1 {[%clk 0:00:29]}  e5 {[%clk 0:00:58]} 28. Re1 {[%clk 0:00:24]}  Rxd4 {[%clk 0:00:56]} 29. Rxd4 {[%clk 0:00:24]}  exd4 {[%clk 0:00:57]} 30. b3 {[%clk 0:00:22]}  d3 {[%clk 0:00:53]} 31. Re8+ {[%clk 0:00:16]}  Kd7 {[%clk 0:00:51]} 32. Re3 {[%clk 0:00:15]}  dxc2+ {[%clk 0:00:46]} 0-1


[Site "https://www.chess.com"]

[Event "Titled Tuesday Blitz September 27 Early 2022"]
[White "Aizpurua, Patrick Emilio"]
[Black "Yang, Ray"]
[WhiteFideId "6600522"]
[BlackFideId "3220281"]
[WhiteElo "2378"]
[BlackElo "1796"]
[Result "1-0"]
[Round "01"]
[TimeControl "180+1"]
[Date "2022.09.27"]
[WhiteClock "0:00:30"]
[BlackClock "0:00:29"]

1. d4 {[%clk 0:02:58]}  d5 {[%clk 0:02:59]} 2. c4 {[%clk 0:02:58]}  c6 {[%clk 0:02:57]} 3. Nf3 {[%clk 0:02:57]}  Nf6 {[%clk 0:02:58]} 4. Nc3 {[%clk 0:02:57]}  e6 {[%clk 0:02:58]} 5. e3 {[%clk 0:02:57]}  a6 {[%clk 0:02:57]} 6. b3 {[%clk 0:02:56]}  Bb4 {[%clk 0:02:57]} 7. Bd2 {[%clk 0:02:56]}  O-O {[%clk 0:02:55]} 8. Qc2 {[%clk 0:02:56]}  Nbd7 {[%clk 0:02:55]} 9. Be2 {[%clk 0:02:56]}  Re8 {[%clk 0:02:50]} 10. a3 {[%clk 0:02:53]}  Bd6 {[%clk 0:02:49]} 11. Nh4 {[%clk 0:02:16]}  e5 {[%clk 0:02:34]} 12. Nf5 {[%clk 0:02:14]}  Bf8 {[%clk 0:02:33]} 13. cxd5 {[%clk 0:02:12]}  cxd5 {[%clk 0:02:27]} 14. O-O {[%clk 0:02:09]}  e4 {[%clk 0:02:16]} 15. b4 {[%clk 0:02:00]}  Nb6 {[%clk 0:02:05]} 16. Ng3 {[%clk 0:01:59]}  Bd7 {[%clk 0:01:59]} 17. Qa2 {[%clk 0:01:54]}  Rc8 {[%clk 0:01:53]} 18. Rac1 {[%clk 0:01:54]}  Nc4 {[%clk 0:01:46]} 19. Nxd5 {[%clk 0:01:38]}  Nxd2 {[%clk 0:01:34]} 20. Nxf6+ {[%clk 0:01:37]}  Qxf6 {[%clk 0:01:33]} 21. Qxd2 {[%clk 0:01:37]}  g6 {[%clk 0:01:23]} 22. Rxc8 {[%clk 0:01:36]}  Bxc8 {[%clk 0:01:21]} 23. Rc1 {[%clk 0:01:28]}  Bd7 {[%clk 0:01:17]} 24. Rc7 {[%clk 0:01:24]}  Bc6 {[%clk 0:01:09]} 25. Bc4 {[%clk 0:01:23]}  Re7 {[%clk 0:01:08]} 26. Rxe7 {[%clk 0:01:16]}  Qxe7 {[%clk 0:01:07]} 27. h3 {[%clk 0:01:15]}  b5 {[%clk 0:00:59]} 28. Bb3 {[%clk 0:01:14]}  h5 {[%clk 0:00:56]} 29. Qc3 {[%clk 0:01:12]}  Qe8 {[%clk 0:00:54]} 30. d5 {[%clk 0:01:03]}  Bd7 {[%clk 0:00:52]} 31. Qd4 {[%clk 0:00:58]}  Bf5 {[%clk 0:00:51]} 32. Nxf5 {[%clk 0:00:52]}  gxf5 {[%clk 0:00:52]} 33. d6 {[%clk 0:00:52]}  Qd7 {[%clk 0:00:48]} 34. Qf6 {[%clk 0:00:46]}  Bxd6 {[%clk 0:00:45]} 35. Bxf7+ {[%clk 0:00:40]}  Qxf7 {[%clk 0:00:45]} 36. Qxd6 {[%clk 0:00:40]}  Qc4 {[%clk 0:00:30]} 37. Qg6+ {[%clk 0:00:38]}  Kf8 {[%clk 0:00:28]} 38. Qxf5+ {[%clk 0:00:38]}  Ke7 {[%clk 0:00:29]} 39. Qh7+ {[%clk 0:00:34]}  Kf6 {[%clk 0:00:28]} 40. Qh6+ {[%clk 0:00:34]}  Ke7 {[%clk 0:00:27]} 41. Qxa6 {[%clk 0:00:32]}  Qc1+ {[%clk 0:00:27]} 42. Kh2 {[%clk 0:00:32]}  Qd2 {[%clk 0:00:27]} 43. Qb7+ {[%clk 0:00:29]}  Kf6 {[%clk 0:00:27]} 44. Qxe4 {[%clk 0:00:28]}  Qxf2 {[%clk 0:00:27]} 45. Qf4+ {[%clk 0:00:28]}  Qxf4+ {[%clk 0:00:28]} 46. exf4 {[%clk 0:00:29]}  Kf5 {[%clk 0:00:28]} 47. g3 {[%clk 0:00:29]}  Ke4 {[%clk 0:00:28]} 48. Kg2 {[%clk 0:00:29]}  Kd3 {[%clk 0:00:29]} 49. f5 {[%clk 0:00:29]}  Kc3 {[%clk 0:00:29]} 50. f6 {[%clk 0:00:30]} 1-0


[Site "https://www.chess.com"]

[Event "Titled Tuesday Blitz September 27 Early 2022"]
[White "Antonova, Nadezhda"]
[Black "Martin Duque, Jesus"]
[WhiteFideId "14700182"]
[BlackFideId "2208954"]
[WhiteElo "1805"]
[BlackElo "2258"]
[Result "0-1"]
[Round "01"]
[TimeControl "180+1"]
[Date "2022.09.27"]
[WhiteClock "0:00:02"]
[BlackClock "0:00:18"]

1. Nf3 {[%clk 0:02:57]}  Nf6 {[%clk 0:02:59]} 2. b3 {[%clk 0:02:57]}  b6 {[%clk 0:02:59]} 3. g3 {[%clk 0:02:55]}  Bb7 {[%clk 0:02:59]} 4. Bg2 {[%clk 0:02:56]}  g6 {[%clk 0:03:00]} 5. Bb2 {[%clk 0:02:55]}  Bg7 {[%clk 0:03:00]} 6. O-O {[%clk 0:02:53]}  O-O {[%clk 0:03:00]} 7. c4 {[%clk 0:02:53]}  e6 {[%clk 0:03:00]} 8. d4 {[%clk 0:01:52]}  Qe7 {[%clk 0:02:46]} 9. Nc3 {[%clk 0:01:47]}  Rd8 {[%clk 0:02:45]} 10. Rb1 {[%clk 0:01:39]}  d5 {[%clk 0:02:45]} 11. e3 {[%clk 0:01:37]}  c5 {[%clk 0:02:44]} 12. cxd5 {[%clk 0:01:31]}  exd5 {[%clk 0:02:44]} 13. dxc5 {[%clk 0:01:25]}  bxc5 {[%clk 0:02:43]} 14. b4 {[%clk 0:01:16]}  Ne4 {[%clk 0:02:37]} 15. Nxe4 {[%clk 0:01:12]}  dxe4 {[%clk 0:02:34]} 16. Nd4 {[%clk 0:01:00]}  cxd4 {[%clk 0:02:32]} 17. exd4 {[%clk 0:01:00]}  Nc6 {[%clk 0:02:26]} 18. d5 {[%clk 0:00:52]}  Bxb2 {[%clk 0:01:47]} 19. Rxb2 {[%clk 0:00:50]}  Qe5 {[%clk 0:01:41]} 20. Rd2 {[%clk 0:00:44]}  Nxb4 {[%clk 0:01:40]} 21. Re1 {[%clk 0:00:44]}  Nxd5 {[%clk 0:01:24]} 22. Rxe4 {[%clk 0:00:42]}  Qf6 {[%clk 0:01:09]} 23. Red4 {[%clk 0:00:39]}  Nc3 {[%clk 0:00:53]} 24. Rxd8+ {[%clk 0:00:38]}  Kg7 {[%clk 0:00:53]} 25. Rxa8 {[%clk 0:00:29]}  Nxd1 {[%clk 0:00:52]} 26. Bxb7 {[%clk 0:00:29]}  Qa1 {[%clk 0:00:48]} 27. Kg2 {[%clk 0:00:23]}  Nc3 {[%clk 0:00:48]} 28. Bf3 {[%clk 0:00:13]}  Qc1 {[%clk 0:00:45]} 29. Rad8 {[%clk 0:00:12]}  a5 {[%clk 0:00:45]} 30. R2d7 {[%clk 0:00:09]}  a4 {[%clk 0:00:40]} 31. Bd5 {[%clk 0:00:08]}  Nxd5 {[%clk 0:00:37]} 32. Rxd5 {[%clk 0:00:08]}  Qc6 {[%clk 0:00:37]} 33. Kh3 {[%clk 0:00:07]}  a3 {[%clk 0:00:37]} 34. Rd2 {[%clk 0:00:07]}  h5 {[%clk 0:00:35]} 35. f4 {[%clk 0:00:06]}  Qf3 {[%clk 0:00:34]} 36. R8d3 {[%clk 0:00:05]}  Qf1+ {[%clk 0:00:32]} 37. Kh4 {[%clk 0:00:05]}  Kh6 {[%clk 0:00:32]} 38. g4 {[%clk 0:00:04]}  hxg4 {[%clk 0:00:30]} 39. Kxg4 {[%clk 0:00:04]}  f5+ {[%clk 0:00:29]} 40. Kg3 {[%clk 0:00:04]}  Qg1+ {[%clk 0:00:29]} 41. Kf3 {[%clk 0:00:05]}  Qg4+ {[%clk 0:00:28]} 42. Ke3 {[%clk 0:00:05]}  Qg1+ {[%clk 0:00:27]} 43. Kf3 {[%clk 0:00:05]}  Qf1+ {[%clk 0:00:27]} 44. Kg3 {[%clk 0:00:05]}  Kh5 {[%clk 0:00:25]} 45. Rf2 {[%clk 0:00:04]}  Qxd3+ {[%clk 0:00:23]} 46. Rf3 {[%clk 0:00:04]}  Qe4 {[%clk 0:00:22]} 47. Rxa3 {[%clk 0:00:04]}  g5 {[%clk 0:00:22]} 48. fxg5 {[%clk 0:00:04]}  Kxg5 {[%clk 0:00:23]} 49. Rf3 {[%clk 0:00:03]}  f4+ {[%clk 0:00:23]} 50. Kg2 {[%clk 0:00:03]}  Kg4 {[%clk 0:00:23]} 51. h3+ {[%clk 0:00:03]}  Kh4 {[%clk 0:00:23]} 52. a3 {[%clk 0:00:03]}  Qg6+ {[%clk 0:00:20]} 53. Kf2 {[%clk 0:00:03]}  Qc2+ {[%clk 0:00:20]} 54. Kg1 {[%clk 0:00:03]}  Qe2 {[%clk 0:00:20]} 55. Rf2 {[%clk 0:00:03]}  Qe3 {[%clk 0:00:19]} 56. Kg2 {[%clk 0:00:02]}  Qg3+ {[%clk 0:00:19]} 57. Kf1 {[%clk 0:00:03]}  Qxh3+ {[%clk 0:00:19]} 58. Ke2 {[%clk 0:00:04]}  Qe3+ {[%clk 0:00:19]} 59. Kf1 {[%clk 0:00:03]}  Kg3 {[%clk 0:00:18]} 60. Rg2+ {[%clk 0:00:03]}  Kf3 {[%clk 0:00:19]} 61. a4 {[%clk 0:00:02]}  Qc1# {[%clk 0:00:18]} 0-1


[Site "https://www.chess.com"]

[Event "Titled Tuesday Blitz September 27 Early 2022"]
[White "Azaladze, Shota"]
[Black "Heinemann, Josefine"]
[WhiteFideId "13603027"]
[BlackFideId "12900460"]
[WhiteElo "2439"]
[BlackElo "2300"]
[Result "1-0"]
[Round "01"]
[TimeControl "180+1"]
[Date "2022.09.27"]
[WhiteClock "0:02:24"]
[BlackClock "0:01:07"]

1. Nf3 {[%clk 0:02:57]}  d5 {[%clk 0:02:58]} 2. g3 {[%clk 0:02:57]}  g6 {[%clk 0:02:57]} 3. Bg2 {[%clk 0:02:57]}  Bg7 {[%clk 0:02:58]} 4. O-O {[%clk 0:02:58]}  e5 {[%clk 0:02:57]} 5. d3 {[%clk 0:02:59]}  Ne7 {[%clk 0:02:57]} 6. Nc3 {[%clk 0:02:59]}  O-O {[%clk 0:02:55]} 7. e4 {[%clk 0:02:59]}  d4 {[%clk 0:02:42]} 8. Ne2 {[%clk 0:02:57]}  c5 {[%clk 0:02:42]} 9. Nd2 {[%clk 0:02:56]}  Nbc6 {[%clk 0:02:38]} 10. f4 {[%clk 0:02:54]}  Be6 {[%clk 0:02:13]} 11. h3 {[%clk 0:02:47]}  Qd7 {[%clk 0:02:13]} 12. f5 {[%clk 0:02:43]}  gxf5 {[%clk 0:02:12]} 13. exf5 {[%clk 0:02:43]}  Nxf5 {[%clk 0:02:11]} 14. Ne4 {[%clk 0:02:43]}  b6 {[%clk 0:01:55]} 15. g4 {[%clk 0:02:41]}  Ne3 {[%clk 0:01:54]} 16. Bxe3 {[%clk 0:02:40]}  dxe3 {[%clk 0:01:54]} 17. Qc1 {[%clk 0:02:39]}  Nd4 {[%clk 0:01:48]} 18. Qxe3 {[%clk 0:02:39]}  Nxc2 {[%clk 0:01:27]} 19. Qg5 {[%clk 0:02:37]}  Qd8 {[%clk 0:01:12]} 20. Nf6+ {[%clk 0:02:33]}  Kh8 {[%clk 0:01:12]} 21. Qh4 {[%clk 0:02:24]}  Bxf6 {[%clk 0:01:11]} 22. Rxf6 {[%clk 0:02:25]}  Nxa1 {[%clk 0:01:07]} 23. Be4 {[%clk 0:02:24]} 1-0


[Site "https://www.chess.com"]

[Event "Titled Tuesday Blitz September 27 Early 2022"]
[White "Baches Garcia, Guillermo"]
[Black "Meshkovs, Nikita"]
[WhiteFideId "2209764"]
[BlackFideId "11602740"]
[WhiteElo "2426"]
[BlackElo "2506"]
[Result "0-1"]
[Round "01"]
[TimeControl "180+1"]
[Date "2022.09.27"]
[WhiteClock "0:00:10"]
[BlackClock "0:00:22"]

1. e4 {[%clk 0:03:00]}  c5 {[%clk 0:02:59]} 2. Nf3 {[%clk 0:03:00]}  Nc6 {[%clk 0:02:59]} 3. d4 {[%clk 0:03:00]}  cxd4 {[%clk 0:02:59]} 4. Nxd4 {[%clk 0:03:01]}  Nf6 {[%clk 0:02:59]} 5. Nc3 {[%clk 0:03:01]}  e5 {[%clk 0:02:59]} 6. Ndb5 {[%clk 0:03:00]}  d6 {[%clk 0:02:59]} 7. Nd5 {[%clk 0:03:00]}  Nxd5 {[%clk 0:02:59]} 8. exd5 {[%clk 0:03:01]}  Nb8 {[%clk 0:02:59]} 9. a4 {[%clk 0:03:00]}  Be7 {[%clk 0:02:58]} 10. Be2 {[%clk 0:03:00]}  O-O {[%clk 0:02:58]} 11. Bd2 {[%clk 0:03:01]}  a6 {[%clk 0:02:52]} 12. Na3 {[%clk 0:03:00]}  Bf5 {[%clk 0:02:52]} 13. a5 {[%clk 0:02:55]}  Nd7 {[%clk 0:02:50]} 14. Nc4 {[%clk 0:02:53]}  Qc7 {[%clk 0:02:42]} 15. Bb4 {[%clk 0:02:45]}  Rae8 {[%clk 0:02:36]} 16. O-O {[%clk 0:02:36]}  Bg6 {[%clk 0:02:32]} 17. Ra3 {[%clk 0:02:19]}  f5 {[%clk 0:02:32]} 18. Rc3 {[%clk 0:02:15]}  Qb8 {[%clk 0:02:32]} 19. Bh5 {[%clk 0:02:04]}  Rf7 {[%clk 0:02:12]} 20. Bxg6 {[%clk 0:01:52]}  hxg6 {[%clk 0:02:13]} 21. Re1 {[%clk 0:01:28]}  Bf8 {[%clk 0:02:09]} 22. Rh3 {[%clk 0:01:19]}  Nf6 {[%clk 0:02:00]} 23. Nb6 {[%clk 0:01:11]}  g5 {[%clk 0:01:55]} 24. c4 {[%clk 0:01:06]}  g4 {[%clk 0:01:51]} 25. Rc3 {[%clk 0:01:00]}  Qd8 {[%clk 0:01:43]} 26. Rc2 {[%clk 0:00:53]}  g6 {[%clk 0:01:40]} 27. Bd2 {[%clk 0:00:49]}  Nd7 {[%clk 0:01:38]} 28. Nxd7 {[%clk 0:00:41]}  Rxd7 {[%clk 0:01:39]} 29. b4 {[%clk 0:00:41]}  Rh7 {[%clk 0:01:39]} 30. g3 {[%clk 0:00:36]}  Qd7 {[%clk 0:01:26]} 31. Be3 {[%clk 0:00:30]}  Rh3 {[%clk 0:01:24]} 32. f4 {[%clk 0:00:27]}  gxf3 {[%clk 0:01:20]} 33. Qxf3 {[%clk 0:00:25]}  e4 {[%clk 0:01:12]} 34. Qf2 {[%clk 0:00:22]}  Bg7 {[%clk 0:01:10]} 35. Rd1 {[%clk 0:00:22]}  Be5 {[%clk 0:01:08]} 36. c5 {[%clk 0:00:21]}  Qh7 {[%clk 0:00:52]} 37. Bf4 {[%clk 0:00:21]}  Qh5 {[%clk 0:00:50]} 38. Re1 {[%clk 0:00:16]}  Qh8 {[%clk 0:00:32]} 39. c6 {[%clk 0:00:16]}  Bxf4 {[%clk 0:00:30]} 40. Qxf4 {[%clk 0:00:15]}  Qd4+ {[%clk 0:00:30]} 41. Qf2 {[%clk 0:00:14]}  e3 {[%clk 0:00:30]} 42. Qg2 {[%clk 0:00:13]}  Rh7 {[%clk 0:00:24]} 43. c7 {[%clk 0:00:13]}  Rc8 {[%clk 0:00:22]} 44. Rec1 {[%clk 0:00:11]}  Rhxc7 {[%clk 0:00:21]} 45. Rxc7 {[%clk 0:00:10]}  Rxc7 {[%clk 0:00:21]} 46. Rxc7 {[%clk 0:00:10]}  e2+ {[%clk 0:00:22]} 0-1


[Site "https://www.chess.com"]

[Event "Titled Tuesday Blitz September 27 Early 2022"]
[White "Baskakov, Egor"]
[Black "Milosevic, Milos"]
[WhiteFideId "24197866"]
[BlackFideId "964875"]
[WhiteElo "2211"]
[BlackElo "2321"]
[Result "1/2-1/2"]
[Round "01"]
[TimeControl "180+1"]
[Date "2022.09.27"]
[WhiteClock "0:00:24"]
[BlackClock "0:00:18"]

1. e4 {[%clk 0:03:00]}  c6 {[%clk 0:02:57]} 2. d4 {[%clk 0:03:00]}  d5 {[%clk 0:02:58]} 3. e5 {[%clk 0:03:00]}  Bf5 {[%clk 0:02:57]} 4. Ne2 {[%clk 0:02:59]}  e6 {[%clk 0:02:55]} 5. Ng3 {[%clk 0:02:59]}  Bg6 {[%clk 0:02:55]} 6. h4 {[%clk 0:03:00]}  h5 {[%clk 0:02:53]} 7. Bd3 {[%clk 0:02:59]}  Bxd3 {[%clk 0:02:45]} 8. cxd3 {[%clk 0:02:59]}  g6 {[%clk 0:02:46]} 9. Nd2 {[%clk 0:02:59]}  Qb6 {[%clk 0:02:45]} 10. Nf3 {[%clk 0:02:55]}  Nh6 {[%clk 0:02:44]} 11. O-O {[%clk 0:02:54]}  Ng4 {[%clk 0:02:43]} 12. Rb1 {[%clk 0:02:49]}  Nd7 {[%clk 0:02:40]} 13. b4 {[%clk 0:02:48]}  a5 {[%clk 0:02:37]} 14. a3 {[%clk 0:02:37]}  axb4 {[%clk 0:02:31]} 15. axb4 {[%clk 0:02:38]}  Bg7 {[%clk 0:02:31]} 16. Bg5 {[%clk 0:02:33]}  O-O {[%clk 0:02:28]} 17. Be7 {[%clk 0:02:33]}  Rfe8 {[%clk 0:02:26]} 18. Bd6 {[%clk 0:02:32]}  Bf8 {[%clk 0:02:15]} 19. Bxf8 {[%clk 0:02:28]}  Rxf8 {[%clk 0:02:16]} 20. Qd2 {[%clk 0:02:27]}  Ra4 {[%clk 0:02:12]} 21. Qg5 {[%clk 0:02:26]}  Qd8 {[%clk 0:02:09]} 22. Qf4 {[%clk 0:02:24]}  Kg7 {[%clk 0:01:54]} 23. Rfe1 {[%clk 0:01:48]}  Qe7 {[%clk 0:01:41]} 24. Qd2 {[%clk 0:01:23]}  b6 {[%clk 0:01:38]} 25. Rec1 {[%clk 0:01:10]}  Rc8 {[%clk 0:01:38]} 26. Ne2 {[%clk 0:01:02]}  Ra7 {[%clk 0:01:34]} 27. g3 {[%clk 0:00:56]}  Rac7 {[%clk 0:01:32]} 28. Nh2 {[%clk 0:00:52]}  Nxh2 {[%clk 0:01:30]} 29. Kxh2 {[%clk 0:00:53]}  c5 {[%clk 0:01:31]} 30. bxc5 {[%clk 0:00:53]}  bxc5 {[%clk 0:01:31]} 31. f4 {[%clk 0:00:53]}  cxd4 {[%clk 0:01:29]} 32. Nxd4 {[%clk 0:00:52]}  Rxc1 {[%clk 0:01:26]} 33. Rxc1 {[%clk 0:00:53]}  Rxc1 {[%clk 0:01:24]} 34. Qxc1 {[%clk 0:00:54]}  Qc5 {[%clk 0:01:19]} 35. Qe3 {[%clk 0:00:48]}  Kh7 {[%clk 0:01:09]} 36. Qf2 {[%clk 0:00:43]}  Qc3 {[%clk 0:01:02]} 37. Nf3 {[%clk 0:00:25]}  Qxd3 {[%clk 0:00:56]} 38. Ng5+ {[%clk 0:00:24]}  Kg7 {[%clk 0:00:56]} 39. Qa7 {[%clk 0:00:25]}  Qb5 {[%clk 0:00:51]} 40. Qc7 {[%clk 0:00:24]}  Qe2+ {[%clk 0:00:36]} 41. Kh3 {[%clk 0:00:24]}  Qg4+ {[%clk 0:00:35]} 42. Kh2 {[%clk 0:00:24]}  Qe2+ {[%clk 0:00:35]} 43. Kh3 {[%clk 0:00:25]}  Qb5 {[%clk 0:00:21]} 44. Qd6 {[%clk 0:00:23]}  Qf1+ {[%clk 0:00:16]} 45. Kh2 {[%clk 0:00:23]}  Qe2+ {[%clk 0:00:16]} 46. Kh3 {[%clk 0:00:23]}  Qf1+ {[%clk 0:00:16]} 47. Kh2 {[%clk 0:00:23]}  Qe2+ {[%clk 0:00:17]} 48. Kh3 {[%clk 0:00:24]}  Qg4+ {[%clk 0:00:17]} 49. Kh2 {[%clk 0:00:24]}  Qe2+ {[%clk 0:00:18]} 1/2-1/2


[Site "https://www.chess.com"]

[Event "Titled Tuesday Blitz September 27 Early 2022"]
[White "Bilych, Olexiy"]
[Black "Estrada Nieto, Julian"]
[WhiteFideId "14156504"]
[BlackFideId "5101018"]
[WhiteElo "2157"]
[BlackElo "2252"]
[Result "1-0"]
[Round "01"]
[TimeControl "180+1"]
[Date "2022.09.27"]
[WhiteClock "0:00:44"]
[BlackClock "0:00:32"]

1. e4 {[%clk 0:03:00]}  e5 {[%clk 0:02:59]} 2. Nf3 {[%clk 0:03:00]}  Nc6 {[%clk 0:03:00]} 3. Bb5 {[%clk 0:03:00]}  a6 {[%clk 0:03:00]} 4. Ba4 {[%clk 0:03:00]}  Nf6 {[%clk 0:03:01]} 5. O-O {[%clk 0:03:00]}  Be7 {[%clk 0:03:01]} 6. Re1 {[%clk 0:02:58]}  b5 {[%clk 0:03:01]} 7. Bb3 {[%clk 0:02:58]}  d6 {[%clk 0:03:02]} 8. a4 {[%clk 0:02:57]}  b4 {[%clk 0:03:02]} 9. a5 {[%clk 0:02:49]}  O-O {[%clk 0:03:01]} 10. c3 {[%clk 0:02:47]}  Rb8 {[%clk 0:03:00]} 11. d3 {[%clk 0:02:44]}  Rb5 {[%clk 0:02:38]} 12. cxb4 {[%clk 0:02:29]}  Rxb4 {[%clk 0:02:26]} 13. Nc3 {[%clk 0:02:22]}  Bg4 {[%clk 0:02:25]} 14. Be3 {[%clk 0:02:06]}  Bxf3 {[%clk 0:02:22]} 15. gxf3 {[%clk 0:02:07]}  Nd4 {[%clk 0:02:14]} 16. Bxd4 {[%clk 0:02:02]}  exd4 {[%clk 0:02:14]} 17. Ne2 {[%clk 0:01:43]}  Nd7 {[%clk 0:02:04]} 18. f4 {[%clk 0:01:31]}  Nc5 {[%clk 0:02:03]} 19. Bc4 {[%clk 0:01:31]}  Rxb2 {[%clk 0:01:58]} 20. Nxd4 {[%clk 0:01:28]}  Bf6 {[%clk 0:01:57]} 21. Nc6 {[%clk 0:01:23]}  Qd7 {[%clk 0:01:47]} 22. Bd5 {[%clk 0:01:14]}  Qh3 {[%clk 0:01:10]} 23. Re3 {[%clk 0:00:54]}  Qh4 {[%clk 0:01:00]} 24. Qf3 {[%clk 0:00:51]}  Re8 {[%clk 0:00:44]} 25. Rf1 {[%clk 0:00:49]}  g6 {[%clk 0:00:43]} 26. e5 {[%clk 0:00:43]}  Bg7 {[%clk 0:00:34]} 27. exd6 {[%clk 0:00:43]}  Rxe3 {[%clk 0:00:33]} 28. Qxe3 {[%clk 0:00:44]}  cxd6 {[%clk 0:00:32]} 29. Qe8+ {[%clk 0:00:44]} 1-0


[Site "https://www.chess.com"]